[Event "DPEM German Cup 2020"]
[Site "Magdeburg"]
[Date "2020.08.20"]
[Round "1.2"]
[White "Falk, Kristoffer"]
[Black "Sergin, Mark"]
[Result "1-0"]
[ECO "A46"]
[WhiteElo "2042"]
[BlackElo "2233"]
[Annotator "RC"]
[PlyCount "57"]
[EventDate "2020.07.30"]
[EventType "k.o."]
[EventCountry "GER"]
[SourceTitle "playchess.com"]
[Source "ChessBase"]
[SourceQuality "1"]
[TimeControl "40/5400+30:900+30"]

1. d4 {[%emt 0:00:00]} Nf6 {[%emt 0:00:00]} 2. Nf3 {[%emt 0:00:00]} e6 {[%emt 0:00:00]} 3. c4 {[%emt 0:01:03]} c5 {[%emt 0:02:31]} 4. g3 {[%emt 0:00:09]} cxd4 {[%emt 0:00:47]} 5. Nxd4 {[%emt 0:02:23]} Nc6 {[%emt 0:00:11]} 6. Bg2 {[%emt 0:10:54]} Bc5 {[%emt 0:04:12]} 7. Nc2 {[%emt 0:01:01]} O-O {[%emt 0:06:07]} 8. O-O {[%emt 0:00:28]} a6 {[%emt 0:01:05]} 9. Nc3 {[%emt 0:03:05]} Be7 {[%emt 0:00:40]} 10. b3 {[%emt 0:04:54]} d6 {[%emt 0:00:38]} 11. Bb2 {[%emt 0:06:30]} Qc7 {[%emt 0:05:47]} 12. Rc1 {[%emt 0:02:25]} Rb8 {[%emt 0:00:36]} 13. Ne3 {[%emt 0:03:31]} Ne5 {[%emt 0:02:59]} 14. Rc2 {[%emt 0:07:06]} b6 {[%emt 0:04:12]} 15. Qa1 {[%emt 0:02:37]} Bb7 {[%emt 0:01:25]} 16. Rd1 {[%emt 0:03:53]} Bxg2 {[%emt 0:16:35]} 17. Kxg2 {[%emt 0:12:01]} Rfc8 {[%emt 0:09:22]} 18. Qc1 b5 {[%emt 0:00:01]} 19. cxb5 {[%emt 0:01:27]} axb5 {[%emt 0:05:36]} 20. Ncd5 {[%emt 0:02:06]} Nxd5 {[%emt 0:00:01]} 21. Rxc7 {[%emt 0:00:39]} Rxc7 {[%emt 0:00:12]} 22. Qd2 {[%emt 0:00:24]} Nxe3+ {[%emt 0:00:39]} 23. Qxe3 {[%emt 0:01:00]} Nd7 {[%emt 0:01:23]} 24. Rc1 Rbc8 25. Rxc7 {[%emt 0:01:04]} Rxc7 {[%emt 0:00:28]} 26. Qd3 {[%emt 0:04:20]} b4 {[%emt 0:01:27]} 27. Qb5 d5 {[%emt 0:00:01]} 28. Be5 {[%emt 0:01:11]} Ra7 29. Bb8 1-0

[Event "DPEM German Cup 2020"]
[Site "Magdeburg"]
[Date "2020.08.20"]
[Round "1.4"]
[White "Zeuner, Ole"]
[Black "Keyser, Philipp"]
[Result "0-1"]
[ECO "B90"]
[WhiteElo "1821"]
[BlackElo "1995"]
[Annotator "ChessBase"]
[PlyCount "118"]
[EventDate "2020.07.30"]
[EventType "k.o."]
[EventCountry "GER"]
[SourceTitle "playchess.com"]
[Source "ChessBase"]
[SourceQuality "1"]
[TimeControl "40/5400+30:900+30"]

1. e4 {[%emt 0:00:00]} c5 {[%emt 0:00:00]} 2. Nf3 {[%emt 0:00:00]} d6 {[%emt 0:00:00]} 3. d4 {[%emt 0:00:00]} cxd4 {[%emt 0:00:00]} 4. Nxd4 {[%emt 0:00:00]} Nf6 {[%emt 0:00:00]} 5. Nc3 {[%emt 0:00:04]} a6 {[%emt 0:00:05]} 6. Be3 {[%emt 0:00:10]} e6 {[%emt 0:00:57]} 7. g4 {[%emt 0:02:07]} b5 {[%emt 0:04:56]} 8. g5 {[%emt 0:03:28]} Nfd7 {[%emt 0:00:06]} 9. Bg2 {[%emt 0:02:57]} Bb7 {[%emt 0:00:20]} 10. Qe2 {[%emt 0:07:34]} Nb6 {[%emt 0:00:38]} 11. f4 {[%emt 0:05:38]} b4 {[%emt 0:02:00]} 12. Nd1 {[%emt 0:01:46]} Qc7 {[%emt 0:01:03]} 13. O-O {[%emt 0:01:17]} d5 {[%emt 0:01:56]} 14. Qh5 {[%emt 0:08:35]} g6 {[%emt 0:00:39]} 15. Qg4 {[%emt 0:00:05]} N8d7 {[%emt 0:02:28]} 16. f5 {[%emt 0:09:10]} e5 {[%emt 0:00:12]} 17. fxg6 {[%emt 0:01:24]} hxg6 {[%emt 0:01:53]} 18. Nb3 {[%emt 0:04:21]} d4 {[%emt 0:04:27]} 19. Bd2 {[%emt 0:00:55]} Nc4 {[%emt 0:02:11]} 20. Qf3 {[%emt 0:03:01]} Rh7 {[%emt 0:00:19]} 21. Bh3 {[%emt 0:04:32]} O-O-O {[%emt 0:01:26]} 22. Be1 {[%emt 0:05:44]} Be7 {[%emt 0:00:36]} 23. c3 {[%emt 0:02:42]} Rdh8 {[%emt 0:04:26]} 24. Bxd7+ {[%emt 0:00:33]} Qxd7 {[%emt 0:00:11]} 25. Bg3 {[%emt 0:00:14]} Bxg5 {[%emt 0:12:40]} 26. Qd3 {[%emt 0:06:32]} Nd6 {[%emt 0:09:54]} 27. Nc5 {[%emt 0:03:05]} Qc6 {[%emt 0:03:02]} 28. cxd4 {[%emt 0:03:01]} exd4 {[%emt 0:01:28]} 29. Qxd4 {[%emt 0:01:46]} Nxe4 {[%emt 0:01:20]} 30. Nxe4 Qxe4 {[%emt 0:00:00]} 31. Qxe4 {[%emt 0:03:47]} Bxe4 {[%emt 0:00:00]} 32. Re1 {[%emt 0:02:34]} f5 {[%emt 0:00:09]} 33. Nf2 {[%emt 0:00:54]} Bf3 {[%emt 0:02:57]} 34. Nd3 {[%emt 0:00:16]} Be4 {[%emt 0:07:02]} 35. Nc5 {[%emt 0:04:27]} Bb7 {[%emt 0:04:25]} 36. Ne6 {[%emt 0:02:43]} Bd2 {[%emt 0:00:35]} 37. Re2 {[%emt 0:00:46]} Rd7 {[%emt 0:00:57]} 38. Nc5 {[%emt 0:02:02]} Rd5 {[%emt 0:00:58]} 39. Na4 {[%emt 0:02:43]} Kd8 {[%emt 0:01:46]} 40. Nb6 {[%emt 0:03:09]} Rd4 {[%emt 0:01:43]} 41. Be5 {[%emt 0:18:18]} Re8 {[%emt 0:23:57]} 42. Bf6+ {[%emt 0:01:48]} Kc7 {[%emt 0:00:07]} 43. Rxe8 {[%emt 0:00:39]} Rg4+ {[%emt 0:00:06]} 44. Kf1 {[%emt 0:00:59]} Kxb6 {[%emt 0:00:07]} 45. Rd1 {[%emt 0:00:00]} Bf4 {[%emt 0:00:00]} 46. Re6+ {[%emt 0:00:00]} Kb5 {[%emt 0:00:00]} 47. Bd8 {[%emt 0:00:00]} Bg2+ {[%emt 0:00:00]} 48. Kf2 {[%emt 0:00:00]} Bxh2 {[%emt 0:00:00]} 49. Rb6+ {[%emt 0:00:00]} Kc5 {[%emt 0:00:00]} 50. Rxa6 {[%emt 0:00:00]} Be4 {[%emt 0:00:00]} 51. Bf6 {[%emt 0:00:00]} Bf4 {[%emt 0:00:00]} 52. b3 {[%emt 0:00:00]} Rg3 {[%emt 0:00:00]} 53. Bd4+ {[%emt 0:01:35]} Kb5 {[%emt 0:00:00]} 54. Re6 {[%emt 0:01:07]} g5 {[%emt 0:00:00]} 55. Rg1 Rd3 {[%emt 0:00:00]} 56. Ba7 {[%emt 0:02:16]} Rd2+ {[%emt 0:00:00]} 57. Ke1 {[%emt 0:00:39]} Rxa2 {[%emt 0:00:00]} 58. Bd4 {[%emt 0:00:23]} Rc2 {[%emt 0:00:02]} 59. Kd1 {[%emt 0:01:23]} Rd2+ {[%emt 0:00:05]} 0-1

[Event "DPEM German Cup 2020"]
[Site "Magdeburg"]
[Date "2020.08.20"]
[Round "1.5"]
[White "Langrock, Hannes"]
[Black "Mueller, Philipp"]
[Result "1-0"]
[ECO "D71"]
[WhiteElo "2346"]
[BlackElo "2171"]
[Annotator "RC"]
[PlyCount "101"]
[EventDate "2020.07.30"]
[EventType "k.o."]
[EventCountry "GER"]
[SourceTitle "playchess.com"]
[Source "ChessBase"]
[SourceQuality "1"]
[TimeControl "40/5400+30:900+30"]

1. d4 Nf6 2. c4 g6 3. g3 c5 4. Nf3 Bg7 5. Bg2 O-O 6. O-O cxd4 7. Nxd4 d5 8. cxd5 Nxd5 9. Nc3 Nxc3 10. bxc3 Nc6 11. Be3 Na5 12. Qd3 Bd7 13. Nb3 Nxb3 14. axb3 Qc7 15. Rxa7 Rxa7 16. Bxa7 Bc6 17. Bxc6 Qxc6 18. c4 Be5 19. Rd1 h5 20. Qd5 Bd6 21. c5 Bb8 22. Qxc6 bxc6 23. Bb6 f5 24. b4 Kf7 25. Bd8 Bd6 26. Ba5 Be5 27. Rd3 g5 28. Bd8 h4 29. b5 cxb5 30. c6 h3 31. f4 gxf4 32. gxf4 Bxf4 33. c7 Bxc7 34. Bxc7 Rc8 35. Be5 Rc4 36. Kf2 Ke6 37. Bb2 b4 38. Rxh3 Kd5 39. Rd3+ Kc5 40. Re3 Rh4 41. Kg3 Rh6 42. Kf2 Rh4 43. h3 Kc4 44. Kg3 Rh6 45. Rxe7 Kb3 46. Bg7 Rh5 47. h4 Kc2 48. Rc7+ Kd2 49. Rb7 Kxe2 50. Rxb4 Rh7 51. Bf6 1-0

[Event "DPEM German Cup 2020"]
[Site "Magdeburg"]
[Date "2020.08.20"]
[Round "2.3"]
[White "Keyser, Philipp"]
[Black "Meyer-Dunker, Paul"]
[Result "1-0"]
[ECO "C63"]
[WhiteElo "1995"]
[BlackElo "2105"]
[Annotator "ChessBase"]
[PlyCount "61"]
[EventDate "2020.07.30"]
[EventType "k.o."]
[EventCountry "GER"]
[SourceTitle "playchess.com"]
[Source "ChessBase"]
[SourceQuality "1"]
[TimeControl "40/5400+30:900+30"]

1. e4 {[%emt 0:00:00]} e5 {[%emt 0:00:00]} 2. Nf3 {[%emt 0:00:00]} Nc6 {[%emt 0:00:00]} 3. Bb5 {[%emt 0:00:00]} f5 {[%emt 0:00:00]} 4. Nc3 {[%emt 0:00:45]} fxe4 {[%emt 0:00:00]} 5. Nxe4 {[%emt 0:00:08]} Nf6 {[%emt 0:01:33]} 6. Nxf6+ {[%emt 0:01:12]} Qxf6 {[%emt 0:00:05]} 7. Qe2 {[%emt 0:00:21]} Be7 {[%emt 0:01:52]} 8. Bxc6 {[%emt 0:00:33]} dxc6 {[%emt 0:01:46]} 9. Nxe5 {[%emt 0:00:09]} O-O {[%emt 0:01:38]} 10. O-O {[%emt 0:00:14]} Bf5 {[%emt 0:02:55]} 11. f4 {[%emt 0:01:40]} Kh8 {[%emt 0:01:41]} 12. d4 {[%emt 0:00:10]} Rae8 {[%emt 0:03:55]} 13. Be3 {[%emt 0:00:31]} Bd6 {[%emt 0:01:24]} 14. Rf2 {[%emt 0:00:12]} c5 {[%emt 0:01:30]} 15. c3 {[%emt 0:04:55]} cxd4 {[%emt 0:00:54]} 16. cxd4 {[%emt 0:00:08]} Qe6 {[%emt 0:11:23]} 17. Qb5 {[%emt 0:03:20]} Be4 {[%emt 0:02:26]} 18. a3 {[%emt 0:01:05]} a6 {[%emt 0:06:58]} 19. Qc4 {[%emt 0:05:13]} Qf5 {[%emt 0:05:03]} 20. Rd1 {[%emt 0:01:50]} c6 {[%emt 0:02:02]} 21. Qb3 {[%emt 0:03:31]} Bd5 {[%emt 0:08:59]} 22. Qxb7 {[%emt 0:01:57]} Qe4 {[%emt 0:00:30]} 23. Re1 {[%emt 0:01:28]} Rxf4 {[%emt 0:02:49]} 24. Bd2 {[%emt 0:05:03]} Rxf2 {[%emt 0:17:54]} 25. Rxe4 {[%emt 0:00:22]} Rxd2 {[%emt 0:04:35]} 26. Ng6+ {[%emt 0:00:11]} hxg6 {[%emt 0:00:26]} 27. Rxe8+ {[%emt 0:00:06]} Kh7 {[%emt 0:00:07]} 28. Qc8 {[%emt 0:00:19]} Rxg2+ {[%emt 0:12:38]} 29. Kf1 {[%emt 0:00:07]} Kh6 {[%emt 0:00:23]} 30. Rh8+ {[%emt 0:00:37]} Kg5 {[%emt 0:00:05]} 31. Qd8+ {[%emt 0:00:16]} 1-0

[Event "DPEM German Cup 2020"]
[Site "Magdeburg"]
[Date "2020.08.20"]
[Round "2.4"]
[White "Gebigke, Martin"]
[Black "Langrock, Hannes"]
[Result "0-1"]
[ECO "A81"]
[WhiteElo "2077"]
[BlackElo "2346"]
[Annotator "ChessBase"]
[PlyCount "78"]
[EventDate "2020.07.30"]
[EventType "k.o."]
[EventCountry "GER"]
[SourceTitle "playchess.com"]
[Source "ChessBase"]
[SourceQuality "1"]
[TimeControl "40/5400+30:900+30"]

1. d4 {[%emt 0:00:00]} f5 {[%emt 0:00:00]} 2. g3 {[%emt 0:00:00]} Nf6 {[%emt 0:00:00]} 3. Bg2 {[%emt 0:00:00]} g6 {[%emt 0:00:00]} 4. Nf3 {[%emt 0:00:00]} Bg7 {[%emt 0:00:00]} 5. O-O {[%emt 0:00:07]} O-O {[%emt 0:00:04]} 6. b3 {[%emt 0:03:22]} d6 {[%emt 0:01:48]} 7. Bb2 {[%emt 0:00:10]} Ne4 {[%emt 0:01:03]} 8. Qc1 {[%emt 0:28:34]} Nd7 {[%emt 0:09:13]} 9. d5 {[%emt 0:06:28]} Ndf6 {[%emt 0:06:20]} 10. c4 {[%emt 0:00:46]} c6 {[%emt 0:01:42]} 11. dxc6 {[%emt 0:07:19]} bxc6 {[%emt 0:00:17]} 12. Nc3 {[%emt 0:00:15]} Bd7 {[%emt 0:08:13]} 13. Nxe4 {[%emt 0:01:47]} fxe4 {[%emt 0:04:51]} 14. Nd4 {[%emt 0:02:10]} a5 {[%emt 0:06:02]} 15. Qd2 {[%emt 0:06:06]} a4 {[%emt 0:00:55]} 16. Rab1 {[%emt 0:13:24]} axb3 {[%emt 0:01:57]} 17. axb3 {[%emt 0:00:05]} Qb6 {[%emt 0:03:11]} 18. b4 {[%emt 0:09:14]} Ra2 {[%emt 0:08:28]} 19. e3 {[%emt 0:07:07]} Rb8 {[%emt 0:07:51]} 20. Nc2 {[%emt 0:10:00]} Be6 {[%emt 0:08:08]} 21. Qc3 {[%emt 0:00:51]} Ne8 {[%emt 0:03:37]} 22. Qb3 {[%emt 0:00:39]} Rxb2 {[%emt 0:00:23]} 23. Rxb2 {[%emt 0:00:03]} Bxb2 24. Qxb2 {[%emt 0:00:03]} Bxc4 {[%emt 0:00:44]} 25. Rc1 {[%emt 0:03:04]} Nf6 {[%emt 0:02:57]} 26. Qc3 {[%emt 0:00:26]} Bd5 {[%emt 0:01:47]} 27. Rd1 {[%emt 0:00:45]} Rf8 {[%emt 0:08:14]} 28. h3 {[%emt 0:00:10]} Nd7 {[%emt 0:01:10]} 29. b5 {[%emt 0:00:57]} Qxb5 {[%emt 0:02:20]} 30. Nb4 {[%emt 0:00:20]} Nf6 {[%emt 0:00:51]} 31. g4 {[%emt 0:00:22]} h6 {[%emt 0:02:29]} 32. Bf1 {[%emt 0:00:12]} Qb7 {[%emt 0:00:25]} 33. Nxd5 {[%emt 0:00:23]} cxd5 {[%emt 0:00:32]} 34. Rc1 {[%emt 0:00:21]} Kf7 {[%emt 0:00:35]} 35. Be2 {[%emt 0:01:03]} Rb8 {[%emt 0:00:26]} 36. Rc2 {[%emt 0:00:45]} Qb4 {[%emt 0:00:35]} 37. Qxb4 {[%emt 0:00:40]} Rxb4 {[%emt 0:00:05]} 38. Kg2 {[%emt 0:00:27]} d4 {[%emt 0:00:52]} 39. exd4 {[%emt 0:00:11]} Rxd4 {[%emt 0:00:12]} 0-1

[Event "DPEM German Cup 2020"]
[Site "Magdeburg"]
[Date "2020.08.20"]
[Round "2.5"]
[White "Falk, Kristoffer"]
[Black "Weber, Samuel"]
[Result "1/2-1/2"]
[ECO "E10"]
[WhiteElo "2042"]
[BlackElo "2334"]
[Annotator "ChessBase"]
[PlyCount "30"]
[EventDate "2020.07.30"]
[EventType "k.o."]
[EventCountry "GER"]
[SourceTitle "playchess.com"]
[Source "ChessBase"]
[SourceQuality "1"]
[TimeControl "40/5400+30:900+30"]

1. d4 {[%emt 0:00:00]} Nf6 {[%emt 0:00:00]} 2. Nf3 {[%emt 0:00:00]} e6 {[%emt 0:04:39]} 3. c4 {[%emt 0:07:04]} a6 {[%emt 0:00:30]} 4. g3 {[%emt 0:00:30]} b5 {[%emt 0:00:30]} 5. Bg2 {[%emt 0:00:30]} c5 {[%emt 0:00:30]} 6. b3 {[%emt 0:02:18]} Bb7 {[%emt 0:14:41]} 7. cxb5 {[%emt 0:14:13]} axb5 {[%emt 0:00:34]} 8. dxc5 {[%emt 0:00:30]} Bxc5 {[%emt 0:00:30]} 9. O-O {[%emt 0:02:33]} O-O {[%emt 0:05:17]} 10. Nc3 {[%emt 0:11:29]} Qb6 {[%emt 0:12:00]} 11. a4 {[%emt 0:05:14]} b4 {[%emt 0:00:30]} 12. Nb5 {[%emt 0:00:30]} Ne4 {[%emt 0:15:20]} 13. e3 {[%emt 0:19:09]} d5 {[%emt 0:00:30]} 14. Re1 {[%emt 0:01:24]} Nc6 {[%emt 0:11:30]} 15. Bb2 Rac8 1/2-1/2

[Event "DPEM German Cup 2020"]
[Site "Magdeburg"]
[Date "2020.08.20"]
[Round "2.6"]
[White "Cofmann, Veaceslav"]
[Black "Kuberczyk, Christoph"]
[Result "1-0"]
[ECO "E10"]
[WhiteElo "2272"]
[BlackElo "2348"]
[Annotator "ChessBase"]
[PlyCount "63"]
[EventDate "2020.07.30"]
[EventType "k.o."]
[EventCountry "GER"]
[SourceTitle "playchess.com"]
[Source "ChessBase"]
[SourceQuality "1"]
[TimeControl "40/5400+30:900+30"]

1. d4 {[%emt 0:00:00]} Nf6 {[%emt 0:00:00]} 2. c4 {[%emt 0:00:00]} e6 {[%emt 0:00:08]} 3. Nf3 {[%emt 0:00:04]} c5 {[%emt 0:02:08]} 4. g3 {[%emt 0:02:07]} cxd4 {[%emt 0:01:14]} 5. Nxd4 {[%emt 0:00:15]} d5 {[%emt 0:01:07]} 6. Nf3 {[%emt 0:06:00]} Nc6 {[%emt 0:01:03]} 7. cxd5 {[%emt 0:00:21]} Qxd5 {[%emt 0:18:09]} 8. Bd2 {[%emt 0:09:37]} Qh5 {[%emt 0:03:14]} 9. Nc3 {[%emt 0:02:59]} Bc5 {[%emt 0:08:10]} 10. Bg5 O-O {[%emt 0:00:01]} 11. Bxf6 {[%emt 0:10:18]} gxf6 {[%emt 0:02:30]} 12. Bg2 {[%emt 0:04:46]} Rd8 {[%emt 0:17:28]} 13. Qc1 {[%emt 0:06:19]} Bd7 {[%emt 0:01:17]} 14. O-O {[%emt 0:07:14]} Rac8 {[%emt 0:13:35]} 15. Rd1 {[%emt 0:03:54]} Be8 {[%emt 0:10:36]} 16. Qf4 {[%emt 0:04:17]} Be7 {[%emt 0:05:26]} 17. g4 {[%emt 0:03:09]} Qa5 {[%emt 0:05:42]} 18. Ne4 Rxd1+ {[%emt 0:00:06]} 19. Rxd1 {[%emt 0:00:33]} Rd8 {[%emt 0:02:19]} 20. Rc1 f5 {[%emt 0:00:04]} 21. gxf5 {[%emt 0:06:32]} Qxf5 {[%emt 0:00:01]} 22. Qxf5 {[%emt 0:00:44]} exf5 {[%emt 0:00:04]} 23. Ng3 {[%emt 0:01:12]} Bd7 {[%emt 0:04:13]} 24. Bh3 {[%emt 0:00:55]} Be6 {[%emt 0:01:14]} 25. Nxf5 {[%emt 0:01:43]} Bf8 {[%emt 0:00:53]} 26. a3 {[%emt 0:01:31]} Bg7 {[%emt 0:00:07]} 27. Nxg7 Bxh3 28. Nh5 Kf8 29. Nf4 Bg4 30. Kg2 Bxf3+ 31. Kxf3 Rd2 32. Nd3 1-0

[Event "DPEM German Cup 2020"]
[Site "Magdeburg"]
[Date "2020.08.20"]
[Round "2.7"]
[White "Kopylov, Michael"]
[Black "Tiarks, Jann-Christian"]
[Result "1-0"]
[ECO "A81"]
[WhiteElo "2393"]
[BlackElo "2159"]
[Annotator "ChessBase"]
[PlyCount "55"]
[EventDate "2020.07.30"]
[EventType "k.o."]
[EventCountry "GER"]
[SourceTitle "playchess.com"]
[Source "ChessBase"]
[SourceQuality "1"]
[TimeControl "40/5400+30:900+30"]

1. d4 {[%emt 0:00:00]} f5 {[%emt 0:00:00]} 2. g3 {[%emt 0:00:23]} Nf6 {[%emt 0:00:00]} 3. Bg2 {[%emt 0:00:08]} e6 {[%emt 0:00:00]} 4. Nf3 {[%emt 0:00:44]} d5 {[%emt 0:00:04]} 5. O-O {[%emt 0:00:49]} Bd6 {[%emt 0:00:08]} 6. c4 {[%emt 0:00:29]} c6 {[%emt 0:00:06]} 7. Qc2 {[%emt 0:01:09]} O-O {[%emt 0:00:21]} 8. Nc3 {[%emt 0:02:16]} b6 {[%emt 0:02:20]} 9. Ne5 {[%emt 0:03:04]} Qe7 {[%emt 0:01:27]} 10. cxd5 {[%emt 0:10:02]} exd5 {[%emt 0:00:39]} 11. Nxc6 {[%emt 0:01:26]} Nxc6 {[%emt 0:01:08]} 12. Nxd5 {[%emt 0:00:39]} Nxd5 {[%emt 0:01:05]} 13. Bxd5+ {[%emt 0:00:56]} Be6 {[%emt 0:00:07]} 14. Qxc6 {[%emt 0:05:49]} Rac8 {[%emt 0:00:05]} 15. Qb5 {[%emt 0:02:41]} Kh8 {[%emt 0:01:11]} 16. Bg5 {[%emt 0:07:09]} Qxg5 {[%emt 0:00:56]} 17. Bxe6 {[%emt 0:00:03]} Rce8 {[%emt 0:00:37]} 18. Bd7 {[%emt 0:00:48]} Re7 {[%emt 0:00:23]} 19. Rac1 {[%emt 0:05:38]} h5 {[%emt 0:00:29]} 20. Rc8 {[%emt 0:04:28]} Ref7 {[%emt 0:01:47]} 21. Qd5 {[%emt 0:03:50]} Qg6 {[%emt 0:02:56]} 22. Rfc1 {[%emt 0:04:09]} h4 {[%emt 0:00:23]} 23. Be6 {[%emt 0:00:40]} Rxc8 {[%emt 0:00:04]} 24. Rxc8+ {[%emt 0:01:16]} Rf8 25. Qxf5 {[%emt 0:00:05]} Qxf5 {[%emt 0:01:31]} 26. Bxf5 hxg3 27. Rxf8+ {[%emt 0:00:48]} Bxf8 {[%emt 0:00:07]} 28. hxg3 {[%emt 0:00:05]} 1-0

[Event "DPEM German Cup 2020"]
[Site "Magdeburg"]
[Date "2020.08.22"]
[Round "5.1"]
[White "Neyman, Igor"]
[Black "Kopylov, Michael"]
[Result "1/2-1/2"]
[ECO "D22"]
[WhiteElo "2345"]
[BlackElo "2393"]
[Annotator "ChessBase"]
[PlyCount "80"]
[EventDate "2020.07.30"]
[EventType "k.o."]
[EventCountry "GER"]
[SourceTitle "playchess.com"]
[Source "ChessBase"]
[SourceQuality "1"]
[TimeControl "40/5400+30:900+30"]

1. d4 {[%emt 0:00:00]} d5 {[%emt 0:00:00]} 2. c4 {[%emt 0:00:00]} dxc4 {[%emt 0:00:53]} 3. Nf3 {[%emt 0:00:26]} a6 {[%emt 0:00:32]} 4. e3 {[%emt 0:02:03]} b5 {[%emt 0:00:14]} 5. a4 {[%emt 0:00:22]} Bb7 {[%emt 0:00:20]} 6. b3 {[%emt 0:01:03]} e6 {[%emt 0:00:35]} 7. axb5 {[%emt 0:02:41]} axb5 {[%emt 0:00:31]} 8. Rxa8 {[%emt 0:00:27]} Bxa8 {[%emt 0:00:02]} 9. bxc4 {[%emt 0:00:20]} bxc4 {[%emt 0:00:09]} 10. Bxc4 {[%emt 0:00:30]} Nf6 {[%emt 0:01:13]} 11. O-O {[%emt 0:01:45]} Nbd7 {[%emt 0:00:15]} 12. Nc3 {[%emt 0:03:56]} Be7 {[%emt 0:00:15]} 13. Qe2 {[%emt 0:06:46]} c5 {[%emt 0:02:44]} 14. dxc5 {[%emt 0:07:50]} O-O {[%emt 0:01:49]} 15. Bb2 {[%emt 0:03:34]} Nxc5 {[%emt 0:01:55]} 16. h3 {[%emt 0:02:58]} Qb6 {[%emt 0:09:51]} 17. Nb5 {[%emt 0:01:40]} Nce4 {[%emt 0:06:30]} 18. Be5 {[%emt 0:08:36]} Rc8 {[%emt 0:04:24]} 19. Bd3 {[%emt 0:07:16]} h6 {[%emt 0:05:15]} 20. Ra1 {[%emt 0:04:07]} Bd5 {[%emt 0:02:07]} 21. Qb2 {[%emt 0:06:49]} Nc5 {[%emt 0:11:18]} 22. Be2 {[%emt 0:03:02]} Nce4 23. Rc1 {[%emt 0:02:39]} Rxc1+ {[%emt 0:06:27]} 24. Qxc1 {[%emt 0:00:08]} Qc6 {[%emt 0:00:48]} 25. Qxc6 {[%emt 0:00:35]} Bxc6 {[%emt 0:00:02]} 26. Nfd4 {[%emt 0:00:54]} Bxb5 {[%emt 0:01:54]} 27. Nxb5 {[%emt 0:01:25]} Ne8 {[%emt 0:02:08]} 28. Bf3 {[%emt 0:02:13]} N4d6 {[%emt 0:00:49]} 29. Bc6 {[%emt 0:00:46]} Nxb5 {[%emt 0:00:58]} 30. Bxb5 {[%emt 0:00:37]} Bf6 {[%emt 0:01:17]} 31. Bxe8 {[%emt 0:00:53]} Bxe5 {[%emt 0:00:05]} 32. f4 {[%emt 0:00:18]} Bc7 {[%emt 0:00:24]} 33. Kf2 {[%emt 0:00:11]} Kf8 {[%emt 0:00:15]} 34. Ba4 {[%emt 0:00:10]} h5 {[%emt 0:01:04]} 35. g4 {[%emt 0:00:16]} hxg4 {[%emt 0:00:05]} 36. hxg4 {[%emt 0:00:06]} Ke7 {[%emt 0:00:14]} 37. Kf3 {[%emt 0:00:10]} Bb6 {[%emt 0:00:06]} 38. g5 {[%emt 0:00:19]} g6 {[%emt 0:00:15]} 39. e4 {[%emt 0:00:16]} Bc7 {[%emt 0:00:15]} 40. Kg4 {[%emt 0:00:13]} Bb8 {[%emt 0:00:20]} 1/2-1/2